bitfinex/quotes_BTCUSD_20240827
["timestamp","ask_amount","ask_price","bid_price","bid_amount"]
[1724752479519,1.77324904,62761.0,62760.0,0.0083477]
[1724752480586,1.77324904,62761.0,62760.0,0.009253]
[1724752481037,1.07324904,62761.0,62760.0,0.009253]
[1724752482630,1.39191804,62761.0,62760.0,0.009253]
[1724752485790,1.39191804,62761.0,62760.0,0.007253]
[1724752486167,1.39291804,62761.0,62760.0,0.007253]
[1724752486594,1.40091804,62761.0,62760.0,0.007253]
[1724752486978,1.39691804,62761.0,62760.0,0.007253]
[1724752487430,1.40191804,62761.0,62760.0,0.007253]
[1724752488062,1.08324904,62761.0,62760.0,0.007253]
[1724752488722,1.40191804,62761.0,62760.0,0.007253]
[1724752488948,1.07824904,62761.0,62760.0,0.007253]
[1724752489155,1.39691804,62761.0,62760.0,0.007253]
[1724752489334,1.07324904,62761.0,62760.0,0.007253]
[1724752489559,1.39391804,62761.0,62760.0,0.007253]
[1724752490129,1.39191804,62761.0,62760.0,0.007253]
[1724752490405,1.39291804,62761.0,62760.0,0.007253]
[1724752491537,1.07424904,62761.0,62760.0,0.007253]
[1724752492400,1.39291804,62761.0,62760.0,0.007253]
[1724752492603,1.07424904,62761.0,62760.0,0.007253]
[1724752492968,1.39291804,62761.0,62760.0,0.007253]
[1724752493148,1.07424904,62761.0,62760.0,0.007253]
[1724752494626,1.39291804,62761.0,62760.0,0.007253]
[1724752500863,2.03025604,62761.0,62760.0,0.007253]
[1724752501085,2.15042402,62761.0,62760.0,0.007253]
[1724752501318,1.80767675,62755.0,62754.0,0.0008053]
[1724752501552,1.90218819,62755.0,62754.0,0.0008053]
[1724752501777,1.90218819,62755.0,62750.0,0.0009053]
[1724752501778,1.43419,62753.0,62750.0,0.0009053]
[1724752502013,1.68839,62753.0,62750.0,0.0009053]
[1724752502235,2.80159219,62753.0,62750.0,0.0009053]
[1724752503208,2.11059219,62753.0,62752.0,0.0019053]
[1724752503450,2.016099,62753.0,62752.0,0.0019053]
[1724752503677,2.725099,62753.0,62752.0,0.0029053]
[1724752504136,2.62442175,62753.0,62752.0,0.0029053]
[1724752504402,2.40639,62753.0,62752.0,0.0029053]
[1724752504639,1.70639,62753.0,62752.0,0.0029053]
[1724752506198,1.92442175,62753.0,62752.0,0.0029053]
[1724752507512,2.62442175,62753.0,62752.0,0.0029053]
[1724752507740,2.94313075,62753.0,62752.0,0.0029053]
[1724752509530,2.40639,62753.0,62752.0,0.0029053]
[1724752512168,2.45367193,62753.0,62752.0,0.0029053]
[1724752512629,2.40639,62753.0,62752.0,0.0029053]
[1724752513744,2.45370674,62753.0,62752.0,0.0029053]
[1724752513967,2.4773129,62753.0,62752.0,0.0029053]
[1724752514191,2.45353517,62753.0,62752.0,0.0029053]
[1724752514633,2.47712111,62753.0,62752.0,0.0029053]
[1724752515087,2.40619821,62753.0,62752.0,0.0029053]
[1724752515300,1.70619821,62753.0,62752.0,0.0029053]
[1724752515515,1.80076207,62753.0,62752.0,0.0029053]
[1724752515731,1.70619821,62753.0,62752.0,0.0029053]
[1724752515973,1.82467598,62753.0,62752.0,0.0029053]
[1724752516431,1.80098298,62753.0,62752.0,0.0029053]
[1724752516648,1.70619821,62753.0,62752.0,0.0029053]
[1724752518717,0.002,62762.0,62759.0,0.956037]
[1724752518718,0.00476838,62762.0,62759.0,0.956037]
[1724752518953,0.000823,62791.0,62772.0,0.159306]
[1724752518954,0.318529,62789.0,62772.0,0.159306]
[1724752519188,0.00398184,62788.0,62772.0,0.49524747]
[1724752519434,0.00398184,62788.0,62772.0,0.477919]
[1724752519666,0.001,62786.0,62772.0,0.5496742]
[1724752519897,0.001,62786.0,62772.0,0.5913742]
[1724752520536,0.0891,62788.0,62772.0,0.2727612]
[1724752520537,0.001,62784.0,62772.0,0.2727612]
[1724752520965,0.003,62784.0,62772.0,0.2737612]
[1724752521183,0.0716,62784.0,62772.0,0.0657]
[1724752521413,0.00480535,62781.0,62772.0,0.0657]
[1724752521864,0.00480535,62781.0,62772.0,0.0517]
[1724752522075,0.00480535,62781.0,62772.0,0.0647]
[1724752522737,0.00480535,62781.0,62772.0,0.0507]
[1724752522964,0.00480535,62781.0,62772.0,0.0647]
[1724752523187,0.00480535,62781.0,62772.0,0.0787]
[1724752524556,0.00480535,62781.0,62772.0,0.238006]
[1724752524781,0.000823,62781.0,62772.0,0.61578489]
[1724752525007,0.000823,62781.0,62772.0,0.93439789]
[1724752525219,0.000823,62781.0,62772.0,1.65296073]
[1724752525664,0.000823,62781.0,62772.0,1.65446073]
[1724752525885,0.000823,62781.0,62772.0,1.99039478]
[1724752527014,0.000823,62781.0,62772.0,1.97639478]
[1724752527491,0.001823,62773.0,62772.0,1.99039478]
[1724752527958,0.001823,62773.0,62772.0,1.97639478]
[1724752528188,0.001823,62773.0,62772.0,1.99039478]
[1724752528406,0.001823,62773.0,62772.0,1.97307373]
[1724752529305,0.001823,62773.0,62752.0,0.0009053]
[1724752529306,0.0848,62766.0,62752.0,0.0009053]
[1724752529548,0.00398381,62765.0,62752.0,0.0009053]
[1724752529764,0.00398358,62765.0,62757.0,0.159343]
[1724752530003,0.00398358,62765.0,62754.0,0.159351]
[1724752530218,0.00398358,62765.0,62752.0,0.0009053]
[1724752530457,0.01887836,62764.0,62752.0,0.0009053]
[1724752530660,0.32264585,62763.0,62752.0,0.0009053]
[1724752530878,0.1,62762.0,62752.0,0.0009053]
[1724752531098,0.00398355,62761.0,62752.0,0.0009053]
[1724752532273,0.00398355,62761.0,62752.0,0.1602623]
[1724752532521,0.12497704,62762.0,62753.0,0.159353]
[1724752532522,0.12896059,62762.0,62753.0,0.159353]
[1724752532743,0.00398355,62761.0,62752.0,0.0009053]
[1724752533207,0.00398355,62761.0,62757.0,0.001]
[1724752533640,0.00398355,62761.0,62752.0,0.0009053]
[1724752534509,0.00698355,62761.0,62752.0,0.0009053]
[1724752534720,0.16631855,62761.0,62752.0,0.0009053]
[1724752534928,0.1,62760.0,62752.0,0.0009053]
[1724752536083,0.104,62760.0,62752.0,0.0009053]
[1724752536493,0.263337,62760.0,62752.0,0.0009053]
[1724752537200,0.264337,62760.0,62752.0,0.0009053]
[1724752538088,0.15934,62759.0,62752.0,0.0009053]
[1724752538304,0.1,62758.0,62752.0,0.0009053]
[1724752539040,0.259342,62758.0,62752.0,0.0009053]
[1724752539483,0.1,62758.0,62752.0,0.0009053]
[1724752539700,0.1,62759.0,62752.0,0.0019053]
[1724752539915,0.101,62759.0,62752.0,0.0019053]
[1724752540127,0.001,62759.0,62754.0,0.159352]
[1724752540973,0.001,62759.0,62752.0,0.0009053]
[1724752541184,0.000823,62758.0,62754.0,0.159351]
[1724752541420,0.000823,62758.0,62757.0,0.478033]
[1724752541653,0.000823,62758.0,62757.0,0.98014009]
[1724752541924,0.000823,62758.0,62757.0,0.0005]
[1724752542107,0.000823,62758.0,62757.0,0.478033]
[1724752542343,0.000823,62758.0,62757.0,0.796722]
[1724752542984,0.000823,62758.0,62757.0,0.91342613]
[1724752542988,0.001823,62758.0,62757.0,0.92642613]
[1724752543427,0.000823,62758.0,62757.0,1.23211513]
[1724752543852,0.001823,62758.0,62757.0,1.24511513]
[1724752544086,0.002823,62758.0,62757.0,1.25111513]
[1724752545143,0.001823,62758.0,62757.0,1.03095141]
[1724752545272,0.002823,62758.0,62757.0,1.20329541]
[1724752547389,0.002823,62758.0,62757.0,0.29504813]
[1724752547603,0.002823,62758.0,62757.0,0.019]
[1724752547838,0.002823,62758.0,62757.0,0.178344]
[1724752548444,0.002823,62758.0,62757.0,0.019]
[1724752554273,0.002823,62758.0,62757.0,0.0199053]
[1724752555124,0.115023,62758.0,62757.0,0.0199053]
[1724752556174,0.11483126,62758.0,62757.0,0.05385656]
[1724752556612,0.11483126,62758.0,62757.0,0.21320056]
[1724752557226,0.00263126,62758.0,62757.0,0.21320056]
[1724752557589,0.00263126,62758.0,62757.0,0.0199053]
[1724752558214,0.00263126,62758.0,62757.0,0.1792493]
[1724752558435,0.00263126,62758.0,62757.0,0.0199053]
[1724752558644,0.00263126,62758.0,62757.0,0.51526489]
[1724752559001,0.00263126,62758.0,62757.0,0.83395389]
[1724752559234,0.00263126,62758.0,62757.0,0.94931101]
[1724752562130,0.00263126,62758.0,62757.0,0.94931042]
[1724752562363,0.00263126,62758.0,62757.0,1.26799942]
[1724752563830,0.00263126,62758.0,62757.0,1.26794942]
[1724752565419,0.00263126,62758.0,62757.0,1.26794815]
[1724752565865,0.00263126,62758.0,62757.0,1.25062342]
[1724752566144,0.00263126,62758.0,62757.0,1.76955524]
[1724752567044,0.00263126,62758.0,62757.0,1.87335524]
[1724752568594,0.00263126,62758.0,62757.0,1.87335394]
[1724752569040,0.00263126,62758.0,62757.0,2.19204294]
[1724752569256,0.00263126,62758.0,62757.0,2.24594294]
[1724752569476,0.00263126,62758.0,62757.0,2.29737262]
[1724752569989,0.000823,62773.0,62772.0,1.274845]
[1724752570215,0.000823,62773.0,62772.0,1.47408652]
[1724752571349,0.000823,62773.0,62772.0,1.47908652]
[1724752571567,0.001823,62773.0,62772.0,1.47908652]
[1724752572026,0.001823,62773.0,62772.0,1.47908289]
[1724752572275,0.001823,62773.0,62772.0,1.63800098]
[1724752572736,0.001823,62773.0,62772.0,1.65200098]
[1724752573184,0.001823,62773.0,62772.0,1.64700098]
[1724752573409,0.000823,62773.0,62772.0,1.64700098]
[1724752573637,0.000823,62773.0,62772.0,1.66100098]
[1724752574100,0.000823,62773.0,62772.0,1.47830098]
[1724752574561,0.000823,62773.0,62772.0,1.00076989]
[1724752575285,0.000823,62773.0,62772.0,1.00077085]
[1724752575505,0.00057059,62773.0,62772.0,1.47830211]
[1724752575735,0.00057059,62773.0,62772.0,1.66658118]
[1724752575961,0.00057059,62773.0,62772.0,1.98519418]
[1724752576182,0.00057059,62773.0,62772.0,2.00251381]
[1724752576835,0.00057059,62773.0,62772.0,2.05752682]
[1724752577053,0.00057059,62773.0,62772.0,2.15752682]
[1724752577270,0.00057059,62773.0,62772.0,2.20515594]
[1724752577510,0.00057059,62773.0,62772.0,2.47613982]
[1724752577724,0.00057059,62773.0,62772.0,2.1530925]
[1724752578191,0.00057059,62773.0,62772.0,2.1670925]
[1724752578623,0.00057059,62773.0,62772.0,2.46838587]
[1724752578857,0.00157059,62773.0,62772.0,2.49970218]
[1724752579068,0.00157059,62773.0,62772.0,2.19305584]
[1724752579287,0.00157059,62773.0,62772.0,2.20801419]
[1724752579511,0.00157059,62773.0,62772.0,2.49970218]
[1724752580222,0.00157059,62773.0,62772.0,2.20891933]
[1724752580445,0.00157059,62773.0,62772.0,2.18199448]
[1724752581108,0.00157059,62773.0,62772.0,2.20891924]
[1724752581301,0.00157059,62773.0,62772.0,2.52753224]
[1724752581587,0.000824,62809.0,62793.0,0.001]
[1724752581814,0.128,62801.0,62799.0,0.159238]
[1724752582052,0.128,62801.0,62799.0,0.79619]
[1724752582471,0.000824,62809.0,62799.0,0.79619]
[1724752582472,0.088624,62809.0,62799.0,0.79619]
[1724752582917,0.088624,62809.0,62799.0,0.81345351]
[1724752583350,0.188624,62809.0,62799.0,0.79614]
[1724752583566,0.188624,62809.0,62799.0,0.81345344]
[1724752583771,0.188624,62809.0,62799.0,1.13192944]
[1724752584420,0.188624,62809.0,62799.0,1.114616]
[1724752584636,0.188624,62809.0,62799.0,1.14592913]
[1724752585091,0.188624,62809.0,62799.0,1.15992913]
[1724752585302,0.088624,62809.0,62799.0,1.15992913]
[1724752585752,0.088624,62809.0,62799.0,0.84145313]
[1724752586013,0.127924,62800.0,62799.0,0.85620365]
[1724752586250,0.127924,62800.0,62799.0,0.8735175]
[1724752586461,0.127924,62800.0,62799.0,0.89083108]
[1724752586672,0.127924,62800.0,62799.0,0.8735175]
[1724752587549,0.127924,62800.0,62799.0,0.89083136]
[1724752588838,0.127924,62800.0,62799.0,1.36822545]
[1724752589122,0.000824,62800.0,62799.0,1.04974945]
[1724752591052,0.225924,62800.0,62799.0,0.06262771]
[1724752591289,0.225924,62800.0,62799.0,0.04531385]
[1724752592174,0.225924,62800.0,62799.0,0.03131385]
[1724752592625,0.385159,62800.0,62799.0,0.03131385]
[1724752593296,0.70363,62800.0,62799.0,0.03131385]
[1724752593507,1.22680346,62800.0,62799.0,0.014]
[1724752593739,1.22680346,62800.0,62799.0,0.028]
[1724752593978,1.122101,62800.0,62799.0,0.028]
[1724752594240,1.440572,62800.0,62799.0,0.028]
[1724752594466,0.1233,62789.0,62780.0,0.159285]
[1724752594681,0.1233,62789.0,62778.0,0.318579]
[1724752594682,0.1233,62789.0,62781.0,0.25624661]
[1724752594892,0.1233,62789.0,62782.0,0.01731861]
[1724752595107,0.1233,62789.0,62783.0,0.17659461]
[1724752595336,0.1233,62789.0,62784.0,0.01731861]
[1724752595553,0.1233,62789.0,62785.0,0.01731861]
[1724752595795,0.1233,62789.0,62786.0,0.01731861]
[1724752596034,0.1233,62789.0,62787.0,0.02642029]
[1724752597203,0.1233,62789.0,62784.0,0.159275]
[1724752597437,0.1233,62789.0,62787.0,0.159267]
[1724752597670,0.1233,62789.0,62787.0,0.170267]
[1724752597890,0.1233,62789.0,62788.0,0.0816365]
[1724752598823,0.1233,62789.0,62788.0,0.0813365]
[1724752599275,0.1233,62789.0,62787.0,0.191268]
[1724752599508,0.1233,62789.0,62787.0,0.032]
[1724752599955,0.1233,62789.0,62787.0,0.022]
[1724752600382,0.1233,62789.0,62788.0,0.01]
[1724752600620,0.1233,62789.0,62788.0,0.069782]
[1724752600879,0.1233,62789.0,62788.0,0.048782]
[1724752603300,0.1233,62789.0,62788.0,0.058782]
[1724752603523,0.1174,62794.0,62788.0,0.22870009]
[1724752603736,0.1174,62794.0,62791.0,0.159258]
[1724752604201,0.1174,62794.0,62789.0,0.05472501]
[1724752604665,0.159253,62793.0,62789.0,0.05472501]
[1724752604875,0.276651,62794.0,62789.0,0.05472501]
[1724752605099,0.276651,62794.0,62790.0,0.02308992]
[1724752605338,0.276651,62794.0,62791.0,0.006]
[1724752606495,0.159254,62793.0,62791.0,0.006]
[1724752606726,0.27665,62794.0,62789.0,0.05472501]
[1724752606945,0.27665,62794.0,62790.0,0.02198982]
[1724752607631,0.27665,62794.0,62791.0,0.006]
[1724752607841,0.159253,62793.0,62791.0,0.006]
[1724752608061,0.27665,62794.0,62791.0,0.006]
[1724752608288,0.27665,62794.0,62790.0,0.006]
[1724752608533,0.27665,62794.0,62789.0,0.05472501]
[1724752608534,0.27665,62794.0,62791.0,0.02208982]
[1724752608987,0.27645835,62794.0,62791.0,0.02208982]
[1724752610137,0.27645835,62794.0,62791.0,0.03008982]
[1724752611243,0.27645835,62794.0,62791.0,0.03908982]
[1724752611455,0.27645835,62794.0,62792.0,0.0094719]
[1724752611888,0.159253,62793.0,62792.0,0.0094719]
[1724752612373,0.27645935,62794.0,62792.0,0.0094719]
[1724752612595,0.11720835,62794.0,62792.0,0.0094719]
[1724752612802,0.11720835,62794.0,62793.0,0.02634559]
[1724752613272,0.27645835,62794.0,62793.0,0.02634559]
[1724752613483,0.27645835,62794.0,62792.0,0.017]
[1724752613696,0.27645835,62794.0,62792.0,0.009]
[1724752613903,0.27645835,62794.0,62788.0,0.0009042]
[1724752614114,0.27645835,62794.0,62793.0,0.008]
[1724752614324,0.27645835,62794.0,62793.0,0.017]
[1724752614539,0.27645835,62794.0,62793.0,0.009]
[1724752614540,0.11720835,62794.0,62793.0,0.009]
[1724752614963,0.11720835,62794.0,62793.0,0.04354312]
[1724752616062,0.11720835,62794.0,62793.0,0.03454312]
[1724752616274,0.11803135,62794.0,62793.0,0.04354312]
[1724752616517,0.000823,62794.0,62793.0,0.04354312]
[1724752616973,0.000823,62794.0,62793.0,0.52930212]
[1724752617167,0.000823,62794.0,62793.0,0.21079612]
[1724752618050,0.000823,62794.0,62793.0,0.05154312]
[1724752619799,0.000823,62794.0,62793.0,0.05104312]
[1724752620413,0.118223,62794.0,62793.0,0.05104312]
[1724752621496,0.118223,62794.0,62793.0,0.07780832]
[1724752621697,0.118223,62794.0,62793.0,0.04376409]
[1724752622575,0.118223,62794.0,62793.0,0.017]
[1724752623068,1.009075,62794.0,62793.0,0.017]
[1724752623282,1.109075,62794.0,62793.0,0.017]
[1724752623968,1.109075,62794.0,62793.0,0.009]
[1724752624181,1.109075,62794.0,62788.0,0.0009042]
[1724752624182,0.70059,62789.0,62788.0,0.0009042]
[1724752624846,0.72555275,62789.0,62788.0,0.0009042]
[1724752625273,0.40702575,62789.0,62788.0,0.0009042]
[1724752626371,0.24776275,62789.0,62788.0,0.0009042]
[1724752626811,0.40702575,62789.0,62788.0,0.0089042]
[1724752627273,0.40702575,62789.0,62788.0,0.0179042]
[1724752628148,0.24776275,62789.0,62788.0,0.0179042]
[1724752628374,0.02496275,62789.0,62788.0,0.06238838]
[1724752628594,0.02496275,62789.0,62788.0,0.22165438]
[1724752629305,0.02496275,62789.0,62788.0,0.06238838]
[1724752630814,0.02496275,62789.0,62788.0,1.80614885]
[1724752631039,0.000823,62794.0,62788.0,1.80614885]
[1724752631040,0.000823,62794.0,62793.0,0.796265]
[1724752631331,0.000823,62794.0,62793.0,1.41618909]
[1724752631558,0.000823,62794.0,62793.0,1.89110998]
[1724752631775,0.000823,62794.0,62793.0,1.90606595]
[1724752632242,0.000823,62794.0,62793.0,1.63526316]
[1724752632453,0.000823,62794.0,62793.0,1.75547804]
[1724752632889,0.000823,62794.0,62793.0,1.74647804]
[1724752633094,0.000823,62794.0,62793.0,1.75847787]
[1724752633313,0.000823,62794.0,62793.0,1.74352207]
[1724752633538,0.000823,62794.0,62793.0,1.4455734]
[1724752633981,0.000823,62794.0,62793.0,1.4225734]
[1724752634421,0.000823,62794.0,62793.0,1.4365734]
[1724752634902,0.000823,62794.0,62793.0,0.36815476]
[1724752635141,0.000823,62794.0,62793.0,0.19967934]
[1724752635366,0.000823,62794.0,62793.0,0.05476125]
[1724752635596,0.637825,62794.0,62788.0,0.01862212]
[1724752635826,0.254763,62789.0,62788.0,0.0009042]
[1724752636498,0.379063,62789.0,62788.0,0.0009042]
[1724752636737,0.69759,62789.0,62788.0,0.0149042]
[1724752637159,0.379063,62789.0,62788.0,0.0149042]
[1724752637592,0.379063,62789.0,62788.0,0.0279042]
[1724752638077,0.000823,62794.0,62788.0,0.28372229]
[1724752638307,0.000823,62794.0,62789.0,0.34655232]
[1724752639034,0.000823,62794.0,62789.0,0.50581532]
[1724752639473,0.000823,62794.0,62793.0,0.0009053]
[1724752640836,0.000823,62794.0,62793.0,0.1741583]
[1724752641053,0.000823,62794.0,62793.0,0.0149053]
[1724752641265,0.000823,62794.0,62793.0,0.06846768]
[1724752641759,0.103723,62794.0,62793.0,0.06846768]
[1724752641988,0.103723,62794.0,62793.0,0.0149053]
[1724752642214,0.103723,62794.0,62793.0,0.0289053]
[1724752643157,0.000823,62794.0,62793.0,0.0289053]
[1724752645388,0.000823,62794.0,62793.0,0.66558239]
[1724752645597,0.000823,62794.0,62793.0,0.79887207]
[1724752646018,0.000823,62794.0,62793.0,0.79837207]
[1724752648443,0.000823,62794.0,62793.0,1.11687807]
[1724752649086,0.000823,62794.0,62793.0,0.83111652]
[1724752649560,0.000823,62794.0,62793.0,0.79837207]
[1724752651503,0.000823,62794.0,62793.0,1.11687807]
[1724752651945,0.000823,62794.0,62793.0,1.14962242]
[1724752652203,0.000823,62794.0,62793.0,1.49212842]
[1724752652392,0.000823,62794.0,62793.0,1.58902842]
[1724752653165,0.000823,62794.0,62793.0,1.71302842]
[1724752653371,0.000823,62794.0,62793.0,1.69902842]
[1724752653599,0.000823,62794.0,62793.0,1.68502842]
[1724752653818,0.000823,62794.0,62793.0,1.6990273]
[1724752654059,0.000823,62794.0,62793.0,1.7130273]
[1724752654333,0.000823,62794.0,62793.0,1.71302726]
[1724752656757,0.000823,62794.0,62793.0,1.73034102]
[1724752656982,0.000823,62794.0,62793.0,1.7163395]
[1724752657203,0.000823,62794.0,62793.0,1.7023395]
[1724752658130,0.000823,62794.0,62793.0,1.7163395]
[1724752658364,0.000823,62794.0,62793.0,2.0488455]
[1724752658608,0.000823,62794.0,62793.0,2.10853456]
[1724752658841,0.000823,62794.0,62793.0,2.06080994]
[1724752659289,0.000823,62794.0,62793.0,2.13239687]
[1724752659756,0.000823,62794.0,62793.0,2.06080994]
[1724752660461,0.000823,62794.0,62793.0,2.06080639]
[1724752660694,0.000823,62794.0,62793.0,2.11085853]
[1724752661553,0.000823,62794.0,62793.0,2.15853401]
[1724752662513,0.00063133,62794.0,62793.0,2.15853401]
[1724752663847,0.00063133,62794.0,62793.0,2.10848187]
[1724752664521,0.00063133,62794.0,62793.0,2.04646555]
[1724752664723,0.00063133,62794.0,62793.0,2.06080636]
[1724752667609,0.00063133,62794.0,62793.0,2.13239329]
[1724752668058,0.00063133,62794.0,62793.0,2.43803402]
[1724752668492,0.00063133,62794.0,62793.0,2.53348326]
[1724752668965,2.21161681,62800.0,62799.0,1.65217375]
[1724752669189,2.21161681,62800.0,62799.0,1.89610813]
[1724752670145,2.21161681,62800.0,62799.0,1.88414396]
[1724752670389,2.21161681,62800.0,62799.0,1.91010709]
[1724752670620,2.21161681,62800.0,62799.0,2.05706205]
[1724752670828,2.21161681,62800.0,62799.0,2.06902519]
[1724752671048,2.21161681,62800.0,62799.0,2.05706205]
[1724752671713,2.21161681,62800.0,62799.0,2.06902503]
[1724752671922,2.21161681,62800.0,62799.0,2.05706205]
[1724752672135,2.21161681,62800.0,62799.0,2.08302503]
[1724752672386,2.21161681,62800.0,62799.0,2.30192503]
[1724752672611,2.21161681,62800.0,62799.0,2.28996205]
[1724752673489,2.21161681,62800.0,62799.0,2.27596205]
[1724752673916,2.21161681,62800.0,62799.0,2.28996205]
[1724752674137,2.21161681,62800.0,62799.0,2.12900993]
[1724752674362,2.21161681,62800.0,62799.0,2.01897263]
[1724752674581,2.21161681,62800.0,62799.0,2.03297263]
[1724752675040,2.21161681,62800.0,62799.0,2.01897263]
[1724752675283,2.21161681,62800.0,62799.0,2.04229823]
[1724752676144,2.21161681,62800.0,62799.0,1.96136368]
[1724752676359,2.15438258,62800.0,62799.0,1.96136368]
[1724752676581,2.15520558,62800.0,62799.0,1.89935365]
[1724752676803,2.15520558,62800.0,62799.0,1.96136384]
[1724752677012,2.15520558,62800.0,62799.0,1.91131654]
[1724752677230,2.15520558,62800.0,62799.0,1.96136369]
[1724752677634,2.15520558,62800.0,62799.0,1.96136365]
[1724752681497,0.000824,62809.0,62808.0,1.115505]
[1724752681749,0.000824,62809.0,62808.0,1.75846412]
[1724752681966,0.105124,62809.0,62808.0,1.40178399]
[1724752682831,0.105124,62809.0,62808.0,1.41578399]
[1724752683268,0.105124,62809.0,62808.0,1.40178399]
[1724752683482,0.105124,62809.0,62808.0,1.41578399]
[1724752684128,0.105124,62809.0,62808.0,1.32873412]
[1724752684336,0.105124,62809.0,62808.0,1.34273412]
[1724752684793,0.105124,62809.0,62808.0,1.35208651]
[1724752685074,0.105124,62809.0,62808.0,1.33808651]
[1724752685318,0.105124,62809.0,62808.0,1.35208651]
[1724752686045,0.000824,62809.0,62808.0,1.56968021]
[1724752686264,0.000824,62809.0,62808.0,1.88811021]
[1724752687159,0.000824,62809.0,62808.0,1.87411021]
[1724752687388,0.000824,62809.0,62808.0,1.97161021]
[1724752687863,0.000824,62809.0,62808.0,1.87411021]
[1724752688098,0.218924,62809.0,62808.0,1.35108651]
[1724752688309,0.218924,62809.0,62808.0,1.35208651]
[1724752688750,0.000824,62809.0,62808.0,1.35208651]
[1724752689389,0.000824,62809.0,62808.0,1.33808651]
[1724752690041,0.000824,62809.0,62808.0,1.35208651]
[1724752690251,0.000824,62809.0,62808.0,1.36608651]
[1724752690463,0.000824,62809.0,62808.0,1.65651651]
[1724752690713,0.000824,62809.0,62808.0,1.35208651]
[1724752690942,0.000824,62809.0,62808.0,1.36608651]
[1724752691619,0.000824,62809.0,62808.0,1.68451651]
[1724752695594,0.000824,62809.0,62808.0,1.66720548]
[1724752695707,0.000824,62809.0,62808.0,1.68451366]
[1724752696564,0.234724,62809.0,62808.0,1.34308366]
[1724752698056,0.234724,62809.0,62808.0,1.3698365]
[1724752698747,0.234724,62809.0,62808.0,1.40778843]
[1724752699127,0.234724,62809.0,62808.0,1.38103741]
[1724752699344,0.234724,62809.0,62808.0,1.40778995]
[1724752701611,0.234724,62809.0,62808.0,1.39283772]
[1724752701817,0.234724,62809.0,62808.0,1.40779005]
[1724752702485,0.234724,62809.0,62808.0,1.39283772]
[1724752702699,0.234724,62809.0,62808.0,1.40779025]
[1724752703130,0.234724,62809.0,62808.0,1.39283794]
[1724752703349,0.234724,62809.0,62808.0,1.38348555]
[1724752703775,0.234724,62809.0,62808.0,1.38248555]
[1724752704003,0.234724,62809.0,62808.0,1.06405555]
[1724752704245,0.234724,62809.0,62808.0,1.05005555]
[1724752705409,0.234724,62809.0,62808.0,1.03605555]
[1724752705850,0.234724,62809.0,62808.0,1.05005555]
[1724752706069,0.234724,62809.0,62808.0,1.0360574]
[1724752706280,0.234724,62809.0,62808.0,1.0500574]
[1724752706507,0.234724,62809.0,62808.0,1.0327469]
[1724752706715,0.234724,62809.0,62808.0,1.0500574]
[1724752708061,0.234724,62809.0,62808.0,0.7086275]
[1724752708278,0.234724,62809.0,62808.0,0.54970941]
[1724752709166,0.234724,62809.0,62808.0,0.07206441]
[1724752709443,0.712361,62809.0,62808.0,0.07206441]
[1724752709676,0.712361,62809.0,62799.0,0.0009042]
[1724752709677,0.477699,62801.0,62799.0,0.0009042]
[1724752709903,0.697899,62801.0,62799.0,0.0009042]
[1724752710783,0.697899,62801.0,62800.0,0.0149042]
[1724752710999,0.72285761,62801.0,62800.0,0.0149042]
[1724752711210,0.72285761,62801.0,62800.0,0.0009042]
[1724752712505,0.72285761,62801.0,62800.0,0.0119042]
[1724752712506,0.72385761,62801.0,62800.0,0.0119042]
[1724752712737,0.72485761,62801.0,62800.0,0.0229042]
[1724752712967,0.72285761,62801.0,62800.0,0.0009042]
[1724752713213,0.72385761,62801.0,62800.0,0.0179042]
[1724752713425,1.04332361,62801.0,62800.0,0.0179042]
[1724752713871,1.018365,62801.0,62800.0,0.0179042]
[1724752714104,0.699899,62801.0,62800.0,0.0179042]
[1724752714329,0.2222,62801.0,62800.0,0.0179042]
[1724752717081,0.22200835,62801.0,62800.0,0.0179042]
[1724752717972,0.70368817,62801.0,62800.0,0.0179042]
[1724752718191,0.69970735,62801.0,62800.0,0.0179042]
[1724752720474,0.002,62801.0,62800.0,0.17682229]
[1724752720693,0.002,62801.0,62800.0,0.0179042]
[1724752720694,0.1014,62801.0,62800.0,0.0179042]
[1724752720926,0.2262,62801.0,62800.0,0.1771392]
[1724752721150,0.1268,62801.0,62800.0,0.1771392]
[1724752721379,0.1258,62801.0,62800.0,0.64652829]
[1724752721605,0.001,62801.0,62800.0,0.96499929]
[1724752721830,0.002,62801.0,62800.0,0.99130982]
[1724752722400,0.1238,62805.0,62804.0,0.477676]
[1724752722718,0.1238,62805.0,62804.0,1.31380662]
[1724752723899,0.1248,62805.0,62804.0,1.32780662]
[1724752724782,0.001,62805.0,62804.0,1.34180662]
[1724752726772,0.001,62805.0,62804.0,1.34180523]
[1724752727845,0.001,62805.0,62804.0,1.3685578]
[1724752729613,0.1469,62805.0,62804.0,0.54973771]
[1724752729893,0.2482,62805.0,62804.0,0.52298541]
[1724752730309,0.2482,62805.0,62804.0,0.52298709]
[1724752731177,0.2482,62805.0,62804.0,0.84143809]
[1724752732268,0.2482,62805.0,62804.0,0.52298709]
[1724752732687,0.2482,62805.0,62804.0,0.84143809]
[1724752732906,0.001,62805.0,62804.0,0.84143809]
[1724752733813,0.001,62805.0,62804.0,1.15988909]
[1724752734043,0.001,62805.0,62804.0,0.84143809]
[1724752734268,0.001,62805.0,62804.0,0.824127]
[1724752734480,0.001,62805.0,62804.0,0.98304509]
[1724752734701,0.001,62805.0,62804.0,1.32449609]
[1724752736044,0.001,62805.0,62804.0,1.34180477]
[1724752736269,0.001,62805.0,62804.0,1.36855675]
[1724752737400,0.001,62805.0,62804.0,1.32449609]
[1724752738915,0.001823,62805.0,62804.0,1.32449609]
[1724752741561,0.001823,62805.0,62804.0,1.00604509]
[1724752741784,0.261223,62805.0,62804.0,0.028]
[1724752742244,0.261223,62805.0,62804.0,0.04531072]
[1724752745561,0.261223,62805.0,62804.0,0.20453572]
[1724752746006,0.261223,62805.0,62804.0,0.04531072]
[1724752747354,0.78399171,62805.0,62804.0,0.04531072]
[1724752747558,0.261223,62805.0,62804.0,0.028]
[1724752748242,0.261223,62805.0,62804.0,0.014]
[1724752748707,0.261223,62805.0,62804.0,0.026]
[1724752748708,0.262223,62805.0,62804.0,0.026]
[1724752749151,0.261223,62805.0,62804.0,0.014]
[1724752749599,0.261223,62805.0,62801.0,0.0009053]